[Event "*** Titled Tuesday Blitz"]
[Site "Chess.com"]
[Date "2020.02.04"]
[Round "4"]
[White "LiemLe"]
[Black "NewBornNow"]
[Result "1/2-1/2"]
[WhiteElo "2983"]
[BlackElo "2673"]
[TimeControl "180+2"]
[EndTime "9:54:27 PST"]
[Termination "Game drawn - insufficient material"]

1. e4 {[%clk 0:03:01.9]} 1... d6 {[%clk 0:03:01]} 2. d4 {[%clk 0:03:02.7]} 2...
Nf6 {[%clk 0:03:01.9]} 3. Nc3 {[%clk 0:03:04.1]} 3... e5 {[%clk 0:03:03]} 4. Nf3
{[%clk 0:03:01.5]} 4... Nbd7 {[%clk 0:03:02.4]} 5. Bc4 {[%clk 0:03:02.3]} 5...
Be7 {[%clk 0:03:03.5]} 6. O-O {[%clk 0:03:03.2]} 6... O-O {[%clk 0:03:04.4]} 7.
Re1 {[%clk 0:03:04.4]} 7... c6 {[%clk 0:03:05]} 8. a4 {[%clk 0:03:00.4]} 8...
exd4 {[%clk 0:03:05.8]} 9. Nxd4 {[%clk 0:03:01.2]} 9... Nc5 {[%clk 0:03:05.4]}
10. Ba2 {[%clk 0:02:43.1]} 10... a5 {[%clk 0:03:05.2]} 11. Bf4 {[%clk
0:02:41.8]} 11... Be6 {[%clk 0:03:05.5]} 12. Nxe6 {[%clk 0:02:26.2]} 12... fxe6
{[%clk 0:03:05.8]} 13. e5 {[%clk 0:02:27.3]} 13... Nd5 {[%clk 0:03:06.2]} 14.
exd6 {[%clk 0:01:56.8]} 14... Nxf4 {[%clk 0:03:00.8]} 15. dxe7 {[%clk 0:01:56]}
15... Qxe7 {[%clk 0:03:00.9]} 16. Qg4 {[%clk 0:01:33.7]} 16... Qf6 {[%clk
0:02:51.6]} 17. Rad1 {[%clk 0:01:24.2]} 17... Nd5 {[%clk 0:02:44.8]} 18. Qg3
{[%clk 0:01:06.9]} 18... Nxc3 {[%clk 0:02:42.4]} 19. bxc3 {[%clk 0:01:08.8]}
19... Kh8 {[%clk 0:02:41.5]} 20. Bb3 {[%clk 0:00:57.8]} 20... h6 {[%clk
0:02:27.2]} 21. Qe3 {[%clk 0:00:55.2]} 21... b6 {[%clk 0:02:27.1]} 22. Rd6
{[%clk 0:00:55.4]} 22... Rac8 {[%clk 0:02:17.2]} 23. h3 {[%clk 0:00:52.7]} 23...
Rfd8 {[%clk 0:02:14.1]} 24. Red1 {[%clk 0:00:40.4]} 24... Rxd6 {[%clk
0:02:03.7]} 25. Rxd6 {[%clk 0:00:42.3]} 25... Rd8 {[%clk 0:02:02.9]} 26. Rxc6
{[%clk 0:00:40.3]} 26... Qe7 {[%clk 0:01:49.6]} 27. Qe5 {[%clk 0:00:31.5]} 27...
Qf7 {[%clk 0:01:35.5]} 28. Bxe6 {[%clk 0:00:19.4]} 28... Qe8 {[%clk 0:01:03.6]}
29. Qc7 {[%clk 0:00:10.8]} 29... Rd1+ {[%clk 0:00:57.3]} 30. Kh2 {[%clk
0:00:11.5]} 30... Nxe6 {[%clk 0:00:58.2]} 31. Qxb6 {[%clk 0:00:13.2]} 31... Nf8
{[%clk 0:00:43.4]} 32. Qb5 {[%clk 0:00:09]} 32... Qf7 {[%clk 0:00:34.9]} 33. Qe5
{[%clk 0:00:05.4]} 33... Qxf2 {[%clk 0:00:29.9]} 34. Rxh6+ {[%clk 0:00:06.4]}
34... Kg8 {[%clk 0:00:30.8]} 35. Rc6 {[%clk 0:00:05.1]} 35... Rd2 {[%clk
0:00:27.9]} 36. Qe4 {[%clk 0:00:05.2]} 36... Rd1 {[%clk 0:00:21]} 37. Rc8 {[%clk
0:00:05.6]} 37... Qg1+ {[%clk 0:00:21.9]} 38. Kg3 {[%clk 0:00:07]} 38... Qe1+
{[%clk 0:00:23]} 39. Qxe1 {[%clk 0:00:08.3]} 39... Rxe1 {[%clk 0:00:24.1]} 40.
Ra8 {[%clk 0:00:08.3]} 40... Re3+ {[%clk 0:00:24.9]} 41. Kh2 {[%clk 0:00:08.9]}
41... Rxc3 {[%clk 0:00:26.3]} 42. Rxa5 {[%clk 0:00:10.8]} 42... Rxc2 {[%clk
0:00:28]} 43. Ra8 {[%clk 0:00:12.3]} 43... Kf7 {[%clk 0:00:27.7]} 44. a5 {[%clk
0:00:13.8]} 44... Ra2 {[%clk 0:00:27.4]} 45. Ra7+ {[%clk 0:00:14.4]} 45... Kf6
{[%clk 0:00:26.4]} 46. h4 {[%clk 0:00:15]} 46... Ne6 {[%clk 0:00:26.6]} 47. Kg3
{[%clk 0:00:16.1]} 47... Nd4 {[%clk 0:00:23.3]} 48. Kh3 {[%clk 0:00:16.6]} 48...
Ra3+ {[%clk 0:00:23.1]} 49. Kh2 {[%clk 0:00:17]} 49... Nf5 {[%clk 0:00:23.4]}
50. h5 {[%clk 0:00:18]} 50... Kg5 {[%clk 0:00:22.7]} 51. a6 {[%clk 0:00:18.3]}
51... Kxh5 {[%clk 0:00:21.6]} 52. Ra8 {[%clk 0:00:19.7]} 52... Kg6 {[%clk
0:00:22.3]} 53. a7 {[%clk 0:00:20.9]} 53... Nh6 {[%clk 0:00:20]} 54. Kg1 {[%clk
0:00:21.1]} 54... Ng4 {[%clk 0:00:19.9]} 55. Kf1 {[%clk 0:00:22.6]} 55... Ra2
{[%clk 0:00:20.6]} 56. Ke1 {[%clk 0:00:23.2]} 56... Nf6 {[%clk 0:00:20.1]} 57.
Kd1 {[%clk 0:00:21.7]} 57... Kg5 {[%clk 0:00:17.4]} 58. Kc1 {[%clk 0:00:22.1]}
58... Kg4 {[%clk 0:00:18.4]} 59. Kb1 {[%clk 0:00:22.7]} 59... Ra6 {[%clk
0:00:19.2]} 60. Kb2 {[%clk 0:00:23.2]} 60... Kg3 {[%clk 0:00:20.3]} 61. Kb3
{[%clk 0:00:22.9]} 61... Kxg2 {[%clk 0:00:21.4]} 62. Kc4 {[%clk 0:00:24.2]}
62... g5 {[%clk 0:00:21.4]} 63. Kb5 {[%clk 0:00:23.9]} 63... Ra1 {[%clk
0:00:21]} 64. Kb6 {[%clk 0:00:25.1]} 64... Rb1+ {[%clk 0:00:19.1]} 65. Kc6
{[%clk 0:00:26.1]} 65... Rc1+ {[%clk 0:00:19.7]} 66. Kb5 {[%clk 0:00:24.9]}
66... Rb1+ {[%clk 0:00:18.1]} 67. Kc6 {[%clk 0:00:25.6]} 67... Ra1 {[%clk
0:00:18.3]} 68. Kb6 {[%clk 0:00:25.9]} 68... Nd5+ {[%clk 0:00:16.4]} 69. Kc6
{[%clk 0:00:26]} 69... Ne7+ {[%clk 0:00:16.7]} 70. Kd7 {[%clk 0:00:23.9]} 70...
Nf5 {[%clk 0:00:16.1]} 71. Ke6 {[%clk 0:00:19.5]} 71... Nd4+ {[%clk 0:00:15.8]}
72. Kd5 {[%clk 0:00:18.3]} 72... Nf3 {[%clk 0:00:16.2]} 73. Kc6 {[%clk
0:00:17.7]} 73... g4 {[%clk 0:00:17.3]} 74. Kb6 {[%clk 0:00:19.2]} 74... Rb1+
{[%clk 0:00:18]} 75. Ka6 {[%clk 0:00:20.8]} 75... Ra1+ {[%clk 0:00:16.2]} 76.
Kb6 {[%clk 0:00:22]} 76... Ne5 {[%clk 0:00:16.9]} 77. Rg8 {[%clk 0:00:22.6]}
77... g3 {[%clk 0:00:15]} 78. a8=Q+ {[%clk 0:00:22.9]} 78... Rxa8 {[%clk
0:00:15.7]} 79. Rxa8 {[%clk 0:00:24.8]} 79... Kh3 {[%clk 0:00:15.9]} 80. Rh8+
{[%clk 0:00:24.9]} 80... Kg4 {[%clk 0:00:16.4]} 81. Rg8+ {[%clk 0:00:26.2]}
81... Kf3 {[%clk 0:00:18]} 82. Rxg3+ {[%clk 0:00:28.1]} 82... Kxg3 {[%clk
0:00:19.3]} 1/2-1/2

[Event "*** Titled Tuesday Blitz"]
[Site "Chess.com"]
[Date "2020.02.04"]
[Round "4"]
[White "gameteleRNA"]
[Black "VALPARAISO37"]
[Result "0-1"]
[WhiteElo "1898"]
[BlackElo "2228"]
[TimeControl "180+2"]
[EndTime "9:54:38 PST"]
[Termination "VALPARAISO37 won by checkmate"]

1. d4 {[%clk 0:02:57.4]} 1... Nf6 {[%clk 0:01:26.9]} 2. Bf4 {[%clk 0:02:50.8]}
2... d5 {[%clk 0:01:26.8]} 3. e3 {[%clk 0:02:48]} 3... c5 {[%clk 0:01:27.7]} 4.
c3 {[%clk 0:02:44.9]} 4... Nc6 {[%clk 0:01:28.7]} 5. Nd2 {[%clk 0:02:43.5]} 5...
cxd4 {[%clk 0:01:29.4]} 6. exd4 {[%clk 0:02:37.9]} 6... Bf5 {[%clk 0:01:30.5]}
7. Ngf3 {[%clk 0:02:22.2]} 7... a6 {[%clk 0:01:30.6]} 8. Be2 {[%clk 0:02:07.7]}
8... h6 {[%clk 0:01:29.7]} 9. O-O {[%clk 0:02:03.8]} 9... e6 {[%clk 0:01:30.3]}
10. Ne5 {[%clk 0:01:46.9]} 10... Bd6 {[%clk 0:01:23.2]} 11. Nxc6 {[%clk
0:01:29.4]} 11... bxc6 {[%clk 0:01:22.8]} 12. Bxd6 {[%clk 0:01:26.7]} 12... Qxd6
{[%clk 0:01:22.9]} 13. Nf3 {[%clk 0:01:26.2]} 13... O-O {[%clk 0:01:22.6]} 14.
Ne5 {[%clk 0:01:25.3]} 14... c5 {[%clk 0:01:23.2]} 15. Bd3 {[%clk 0:00:59.3]}
15... Bxd3 {[%clk 0:01:21.6]} 16. Qxd3 {[%clk 0:00:56]} 16... cxd4 {[%clk
0:01:21.8]} 17. cxd4 {[%clk 0:00:51.3]} 17... Rfb8 {[%clk 0:01:22.1]} 18. b3
{[%clk 0:00:34.4]} 18... Rc8 {[%clk 0:01:22]} 19. Rac1 {[%clk 0:00:34.5]} 19...
Qa3 {[%clk 0:01:22.2]} 20. Qd2 {[%clk 0:00:31.9]} 20... Ne4 {[%clk 0:01:18.6]}
21. Qd1 {[%clk 0:00:31]} 21... Qxa2 {[%clk 0:01:17.7]} 22. Rxc8+ {[%clk
0:00:31.4]} 22... Rxc8 {[%clk 0:01:15.7]} 23. Qd3 {[%clk 0:00:32]} 23... Rc2
{[%clk 0:01:13.3]} 24. h3 {[%clk 0:00:32.1]} 24... Rxf2 {[%clk 0:01:13.1]} 25.
Rxf2 {[%clk 0:00:32.4]} 25... Qxf2+ {[%clk 0:01:13.1]} 26. Kh1 {[%clk
0:00:33.2]} 26... Nd2 {[%clk 0:01:13.2]} 27. Nf3 {[%clk 0:00:32.7]} 27... Qf1+
{[%clk 0:01:04.3]} 28. Kh2 {[%clk 0:00:29.8]} 28... Qxd3 {[%clk 0:01:04.3]} 29.
Ng5 {[%clk 0:00:29.3]} 29... Qxd4 {[%clk 0:01:02.7]} 30. Nh7 {[%clk 0:00:29.6]}
30... Qf2 {[%clk 0:01:01]} 31. Nf8 {[%clk 0:00:29.3]} 31... Nf3+ {[%clk
0:01:00.7]} 32. Kh1 {[%clk 0:00:28.4]} 32... Qg3 {[%clk 0:01:00.1]} 33. Nd7
{[%clk 0:00:22.6]} 33... d4 {[%clk 0:00:59.9]} 34. Nb8 {[%clk 0:00:23.1]} 34...
d3 {[%clk 0:01:00.1]} 35. Nc6 {[%clk 0:00:23.8]} 35... d2 {[%clk 0:01:00.3]} 36.
Na7 {[%clk 0:00:24.5]} 36... d1=N {[%clk 0:00:59.9]} 37. Nb5 {[%clk 0:00:21.2]}
37... h5 {[%clk 0:00:59.2]} 38. h4 {[%clk 0:00:20.4]} 38... f6 {[%clk
0:00:57.6]} 39. Na7 {[%clk 0:00:09.7]} 39... e5 {[%clk 0:00:57.2]} 40. Nc8
{[%clk 0:00:09.4]} 40... Kh7 {[%clk 0:00:56.4]} 41. Ne7 {[%clk 0:00:09.6]} 41...
e4 {[%clk 0:00:56.7]} 42. Ng8 {[%clk 0:00:09.5]} 42... e3 {[%clk 0:00:56.5]} 43.
Nh6 {[%clk 0:00:10.2]} 43... e2 {[%clk 0:00:55.5]} 44. Nf5 {[%clk 0:00:11]}
44... e1=B {[%clk 0:00:53.6]} 45. Ne3 {[%clk 0:00:11.4]} 45... f5 {[%clk
0:00:48.7]} 46. Nf1 {[%clk 0:00:11.5]} 46... g5 {[%clk 0:00:48.4]} 47. Nh2
{[%clk 0:00:11.7]} 47... g4 {[%clk 0:00:47.4]} 48. b4 {[%clk 0:00:12.5]} 48...
Qxg2+ {[%clk 0:00:45.1]} 49. Kxg2 {[%clk 0:00:11.1]} 49... Ne3+ {[%clk
0:00:45.7]} 50. Kh1 {[%clk 0:00:10.7]} 50... Bxh4 {[%clk 0:00:45.5]} 51. b5
{[%clk 0:00:10.4]} 51... Bf2 {[%clk 0:00:42.5]} 52. b6 {[%clk 0:00:09.3]} 52...
Bg3 {[%clk 0:00:42.2]} 53. b7 {[%clk 0:00:08.7]} 53... Bb8 {[%clk 0:00:38.9]}
54. Nf1 {[%clk 0:00:07.6]} 54... Nd5 {[%clk 0:00:37.7]} 55. Ng3 {[%clk
0:00:03.9]} 55... f4 {[%clk 0:00:36.7]} 56. Nf5 {[%clk 0:00:02.4]} 56... a5
{[%clk 0:00:36.6]} 57. Ne7 {[%clk 0:00:03]} 57... Nxe7 {[%clk 0:00:34.7]} 58.
Kg2 {[%clk 0:00:02.8]} 58... a4 {[%clk 0:00:35.2]} 59. Kf2 {[%clk 0:00:03.7]}
59... Nf5 {[%clk 0:00:35.1]} 60. Ke2 {[%clk 0:00:04.1]} 60... h4 {[%clk
0:00:35.1]} 61. Kd3 {[%clk 0:00:04.2]} 61... h3 {[%clk 0:00:35.5]} 62. Ke4
{[%clk 0:00:04.5]} 62... h2 {[%clk 0:00:35.7]} 63. Kxf5 {[%clk 0:00:05.8]} 63...
g3 {[%clk 0:00:35.4]} 64. Kg4 {[%clk 0:00:05.3]} 64... g2 {[%clk 0:00:34.7]} 65.
Kxf3 {[%clk 0:00:06.2]} 65... h1=Q {[%clk 0:00:33.5]} 66. Ke4 {[%clk 0:00:07]}
66... g1=Q+ {[%clk 0:00:33]} 67. Kf5 {[%clk 0:00:05.3]} 67... Qg6# {[%clk
0:00:33]} 0-1

[Event "*** Titled Tuesday Blitz"]
[Site "Chess.com"]
[Date "2020.02.04"]
[Round "4"]
[White "Leonid_Starozhilov"]
[Black "victormago"]
[Result "1-0"]
[WhiteElo "2704"]
[BlackElo "2418"]
[TimeControl "180+2"]
[EndTime "9:54:56 PST"]
[Termination "Leonid_Starozhilov won on time"]

1. e4 {[%clk 0:03:01.9]} 1... c5 {[%clk 0:02:59.7]} 2. Nf3 {[%clk 0:03:02.8]}
2... d6 {[%clk 0:03:00.8]} 3. Bb5+ {[%clk 0:03:03.3]} 3... Bd7 {[%clk
0:03:01.2]} 4. Bxd7+ {[%clk 0:03:04]} 4... Qxd7 {[%clk 0:03:03.1]} 5. O-O {[%clk
0:03:04.7]} 5... Nc6 {[%clk 0:03:03.3]} 6. c4 {[%clk 0:03:06.1]} 6... Nf6 {[%clk
0:03:03.9]} 7. Nc3 {[%clk 0:03:08]} 7... e6 {[%clk 0:03:02.8]} 8. d4 {[%clk
0:03:08.6]} 8... cxd4 {[%clk 0:03:04]} 9. Nxd4 {[%clk 0:03:10.4]} 9... Be7
{[%clk 0:03:05.2]} 10. Nf3 {[%clk 0:03:02]} 10... O-O {[%clk 0:03:03.8]} 11. Bf4
{[%clk 0:03:00.2]} 11... Rfd8 {[%clk 0:03:03.6]} 12. Rc1 {[%clk 0:02:59.9]}
12... Rac8 {[%clk 0:03:03.7]} 13. Re1 {[%clk 0:02:57.7]} 13... a6 {[%clk
0:03:02.6]} 14. h3 {[%clk 0:02:54.8]} 14... Qe8 {[%clk 0:02:57.4]} 15. Qe2
{[%clk 0:02:48.7]} 15... h6 {[%clk 0:02:43.4]} 16. Red1 {[%clk 0:02:45.7]} 16...
Qf8 {[%clk 0:02:01.2]} 17. Be3 {[%clk 0:02:18.1]} 17... Nd7 {[%clk 0:01:58]} 18.
b3 {[%clk 0:02:13.3]} 18... Nde5 {[%clk 0:01:57.2]} 19. Nd4 {[%clk 0:02:11.7]}
19... Nxd4 {[%clk 0:01:47.9]} 20. Bxd4 {[%clk 0:02:12.3]} 20... Nd7 {[%clk
0:01:47.5]} 21. Na4 {[%clk 0:02:10.4]} 21... Rc6 {[%clk 0:01:46.6]} 22. Be3
{[%clk 0:01:58.6]} 22... Rdc8 {[%clk 0:01:45.5]} 23. Nb2 {[%clk 0:01:56.8]}
23... Qd8 {[%clk 0:01:25.5]} 24. Nd3 {[%clk 0:01:49.1]} 24... Qa5 {[%clk
0:01:19]} 25. Qd2 {[%clk 0:01:40.6]} 25... Qxd2 {[%clk 0:01:18.3]} 26. Bxd2
{[%clk 0:01:42.5]} 26... Nc5 {[%clk 0:00:57.9]} 27. Nxc5 {[%clk 0:01:36.5]}
27... dxc5 {[%clk 0:00:52.7]} 28. Bf4 {[%clk 0:01:33.7]} 28... b5 {[%clk
0:00:20.3]} 29. Kf1 {[%clk 0:01:25.4]} 29... Bf6 {[%clk 0:00:18]} 30. e5 {[%clk
0:01:24.4]} 30... Bd8 {[%clk 0:00:17.5]} 31. Ke2 {[%clk 0:01:21.9]} 31... g5
{[%clk 0:00:15.7]} 32. Bg3 {[%clk 0:01:10.5]} 32... Be7 {[%clk 0:00:16]} 33. Rd7
{[%clk 0:01:11.3]} 33... R8c7 {[%clk 0:00:15.6]} 34. Rd3 {[%clk 0:01:11.9]}
34... Kf8 {[%clk 0:00:16.2]} 35. f4 {[%clk 0:01:11.8]} 35... Ke8 {[%clk
0:00:15.5]} 36. Bh2 {[%clk 0:01:08.3]} 36... Rb7 {[%clk 0:00:14.5]} 37. g4
{[%clk 0:01:08.6]} 37... bxc4 {[%clk 0:00:13.8]} 38. Rxc4 {[%clk 0:01:09.3]}
38... gxf4 {[%clk 0:00:13.3]} 39. Bxf4 {[%clk 0:01:10.1]} 39... Bg5 {[%clk
0:00:13.6]} 40. Bg3 {[%clk 0:01:02.7]} 40... Rd7 {[%clk 0:00:13.1]} 41. Bf2
{[%clk 0:00:56.2]} 41... Be7 {[%clk 0:00:11.5]} 42. Be3 {[%clk 0:00:54.9]} 42...
Bf8 {[%clk 0:00:10.9]} 43. b4 {[%clk 0:00:53]} 43... Rdc7 {[%clk 0:00:07.8]} 44.
Rdc3 {[%clk 0:00:48.7]} 44... Bg7 {[%clk 0:00:07.8]} 45. Rxc5 {[%clk 0:00:34.9]}
45... Rxc5 {[%clk 0:00:08.1]} 46. Rxc5 {[%clk 0:00:36.8]} 46... Rxc5 {[%clk
0:00:07.1]} 47. Bxc5 {[%clk 0:00:38.7]} 47... Bxe5 {[%clk 0:00:08.6]} 48. Be3
{[%clk 0:00:40.4]} 48... Bg7 {[%clk 0:00:09.2]} 49. Kd3 {[%clk 0:00:41.8]} 49...
Kd7 {[%clk 0:00:10.7]} 50. Kc4 {[%clk 0:00:43]} 50... Kc6 {[%clk 0:00:11.9]} 51.
a4 {[%clk 0:00:44.3]} 51... Bf8 {[%clk 0:00:08.6]} 52. b5+ {[%clk 0:00:46.2]}
52... Kb7 {[%clk 0:00:05.8]} 53. h4 {[%clk 0:00:21.6]} 53... axb5+ {[%clk
0:00:04.5]} 54. Kxb5 {[%clk 0:00:14.8]} 54... f5 {[%clk 0:00:04]} 55. gxf5
{[%clk 0:00:16]} 55... exf5 {[%clk 0:00:05.9]} 56. h5 {[%clk 0:00:09.1]} 56...
Bg7 {[%clk 0:00:06.7]} 57. Bf4 {[%clk 0:00:08.4]} 57... Bf8 {[%clk 0:00:07]} 58.
a5 {[%clk 0:00:09.7]} 58... Bg7 {[%clk 0:00:07.6]} 59. a6+ {[%clk 0:00:11.2]}
59... Ka8 {[%clk 0:00:08.6]} 60. Kb6 {[%clk 0:00:12.6]} 60... Bf8 {[%clk
0:00:09.8]} 61. Be3 {[%clk 0:00:11.7]} 61... Bg7 {[%clk 0:00:10.8]} 62. Kc6
{[%clk 0:00:12.7]} 62... Bf8 {[%clk 0:00:08.5]} 63. Kd5 {[%clk 0:00:11.4]} 63...
f4 {[%clk 0:00:09.6]} 64. Bf2 {[%clk 0:00:08.3]} 64... Kb8 {[%clk 0:00:07.5]}
65. Ke5 {[%clk 0:00:09.3]} 65... f3 {[%clk 0:00:07]} 66. Ke4 {[%clk 0:00:09.8]}
66... Kc7 {[%clk 0:00:06.5]} 67. Kxf3 {[%clk 0:00:05]} 67... Kb8 {[%clk
0:00:07.2]} 68. Ke4 {[%clk 0:00:06.2]} 68... Ka8 {[%clk 0:00:08.7]} 69. Kf5
{[%clk 0:00:07.7]} 69... Ba3 {[%clk 0:00:08.9]} 70. Kg6 {[%clk 0:00:08.8]} 70...
Bc1 {[%clk 0:00:09.9]} 71. Bd4 {[%clk 0:00:08.6]} 71... Bd2 {[%clk 0:00:08.4]}
72. Bg7 {[%clk 0:00:08]} 72... Ka7 {[%clk 0:00:08.9]} 73. Bxh6 {[%clk
0:00:09.7]} 73... Bc3 {[%clk 0:00:07.6]} 74. Be3+ {[%clk 0:00:08.8]} 74... Kxa6
{[%clk 0:00:08.1]} 75. h6 {[%clk 0:00:10.3]} 75... Kb7 {[%clk 0:00:08.7]} 76.
Bg5 {[%clk 0:00:11.2]} 1-0

[Event "*** Titled Tuesday Blitz"]
[Site "Chess.com"]
[Date "2020.02.04"]
[Round "4"]
[White "Rud_Makarian"]
[Black "Sanan_Sjugirov"]
[Result "1/2-1/2"]
[WhiteElo "2612"]
[BlackElo "2834"]
[TimeControl "180+2"]
[EndTime "9:55:49 PST"]
[Termination "Game drawn by stalemate"]

1. Nf3 {[%clk 0:02:59]} 1... d5 {[%clk 0:02:58.9]} 2. d4 {[%clk 0:02:59.8]} 2...
Nf6 {[%clk 0:02:59.7]} 3. c4 {[%clk 0:03:00.7]} 3... e6 {[%clk 0:03:00.8]} 4.
Nc3 {[%clk 0:03:01.4]} 4... Bb4 {[%clk 0:02:54.7]} 5. Qb3 {[%clk 0:03:00.8]}
5... a5 {[%clk 0:02:53.6]} 6. cxd5 {[%clk 0:03:01.5]} 6... exd5 {[%clk
0:02:51.9]} 7. Bg5 {[%clk 0:03:02.7]} 7... c6 {[%clk 0:02:44.2]} 8. e3 {[%clk
0:03:00]} 8... Nbd7 {[%clk 0:02:37.4]} 9. Bd3 {[%clk 0:02:55.5]} 9... h6 {[%clk
0:02:36.9]} 10. Bh4 {[%clk 0:02:55.1]} 10... O-O {[%clk 0:02:30.2]} 11. O-O
{[%clk 0:02:54.4]} 11... Re8 {[%clk 0:02:27.3]} 12. Qc2 {[%clk 0:02:54]} 12...
Be7 {[%clk 0:02:21.5]} 13. h3 {[%clk 0:02:42.5]} 13... Ne4 {[%clk 0:02:13]} 14.
Bxe7 {[%clk 0:02:34.7]} 14... Qxe7 {[%clk 0:02:13.7]} 15. Rac1 {[%clk
0:02:24.2]} 15... Ndf6 {[%clk 0:01:48.8]} 16. Ne5 {[%clk 0:02:23.4]} 16... Nd6
{[%clk 0:01:34.4]} 17. Na4 {[%clk 0:02:14.8]} 17... Nfe4 {[%clk 0:01:29.7]} 18.
Nc5 {[%clk 0:02:01.5]} 18... Bf5 {[%clk 0:01:22.1]} 19. Nxe4 {[%clk 0:01:32.3]}
19... Bxe4 {[%clk 0:01:21.7]} 20. Qc5 {[%clk 0:01:23.1]} 20... Bxd3 {[%clk
0:00:59.7]} 21. Nxd3 {[%clk 0:01:25]} 21... a4 {[%clk 0:01:00.6]} 22. Rfe1
{[%clk 0:01:18.6]} 22... f6 {[%clk 0:00:49.6]} 23. Nf4 {[%clk 0:01:06.5]} 23...
Nc4 {[%clk 0:00:45.2]} 24. Qxe7 {[%clk 0:01:05.3]} 24... Rxe7 {[%clk 0:00:47.1]}
25. Nd3 {[%clk 0:01:05.2]} 25... Ree8 {[%clk 0:00:41.1]} 26. Rc2 {[%clk
0:00:52.8]} 26... Kf7 {[%clk 0:00:41.1]} 27. b3 {[%clk 0:00:46.1]} 27... axb3
{[%clk 0:00:41.5]} 28. axb3 {[%clk 0:00:48]} 28... Nd6 {[%clk 0:00:42.6]} 29.
Rb1 {[%clk 0:00:38.2]} 29... Ra3 {[%clk 0:00:41.7]} 30. Nc5 {[%clk 0:00:36.6]}
30... Rea8 {[%clk 0:00:42.3]} 31. Rbb2 {[%clk 0:00:31.5]} 31... Ra1+ {[%clk
0:00:41.6]} 32. Kh2 {[%clk 0:00:32.2]} 32... g5 {[%clk 0:00:40.8]} 33. g4 {[%clk
0:00:32.1]} 33... h5 {[%clk 0:00:38.7]} 34. Kg2 {[%clk 0:00:24.2]} 34... hxg4
{[%clk 0:00:39.3]} 35. hxg4 {[%clk 0:00:26.1]} 35... Kg6 {[%clk 0:00:29.9]} 36.
Nd3 {[%clk 0:00:19.7]} 36... Rd1 {[%clk 0:00:25.3]} 37. Rd2 {[%clk 0:00:19.5]}
37... Rda1 {[%clk 0:00:24.4]} 38. Nc5 {[%clk 0:00:19.6]} 38... f5 {[%clk
0:00:19]} 39. gxf5+ {[%clk 0:00:19.9]} 39... Kxf5 {[%clk 0:00:20.9]} 40. Kf3
{[%clk 0:00:20.6]} 40... Re1 {[%clk 0:00:20.2]} 41. Re2 {[%clk 0:00:21]} 41...
Rg1 {[%clk 0:00:16.9]} 42. Rec2 {[%clk 0:00:21.4]} 42... Raa1 {[%clk 0:00:15.4]}
43. Ke2 {[%clk 0:00:19.8]} 43... Rad1 {[%clk 0:00:15.8]} 44. Rd2 {[%clk
0:00:19.8]} 44... Rge1+ {[%clk 0:00:13.2]} 45. Kd3 {[%clk 0:00:19.8]} 45... Rc1
{[%clk 0:00:13.8]} 46. Re2 {[%clk 0:00:18.4]} 46... Rf1 {[%clk 0:00:13.3]} 47.
Rec2 {[%clk 0:00:16.6]} 47... Rcd1+ {[%clk 0:00:12.9]} 48. Rd2 {[%clk
0:00:17.7]} 48... Rxf2 {[%clk 0:00:08.9]} 49. Rxd1 {[%clk 0:00:17.5]} 49... Rxb2
{[%clk 0:00:10.2]} 50. Rf1+ {[%clk 0:00:19.4]} 50... Kg6 {[%clk 0:00:10.9]} 51.
Rf8 {[%clk 0:00:19.8]} 51... b6 {[%clk 0:00:11]} 52. Nd7 {[%clk 0:00:21.2]}
52... Rxb3+ {[%clk 0:00:10.7]} 53. Ke2 {[%clk 0:00:22.7]} 53... Ne4 {[%clk
0:00:10.7]} 54. Ne5+ {[%clk 0:00:23.6]} 54... Kg7 {[%clk 0:00:10.4]} 55. Rf7+
{[%clk 0:00:24.5]} 55... Kh6 {[%clk 0:00:11.9]} 56. Rc7 {[%clk 0:00:24.3]} 56...
Rb2+ {[%clk 0:00:12.7]} 57. Kf3 {[%clk 0:00:25.6]} 57... c5 {[%clk 0:00:11.3]}
58. Ng4+ {[%clk 0:00:24.3]} 58... Kg6 {[%clk 0:00:12.2]} 59. Ne5+ {[%clk
0:00:25.3]} 59... Kf6 {[%clk 0:00:12.7]} 60. Rc6+ {[%clk 0:00:25]} 60... Ke7
{[%clk 0:00:13.4]} 61. Ng6+ {[%clk 0:00:26]} 61... Kd8 {[%clk 0:00:13.3]} 62.
Ne5 {[%clk 0:00:26.5]} 62... Rf2+ {[%clk 0:00:13.5]} 63. Kg4 {[%clk 0:00:27.6]}
63... cxd4 {[%clk 0:00:14.5]} 64. exd4 {[%clk 0:00:28.3]} 64... b5 {[%clk
0:00:14.2]} 65. Rb6 {[%clk 0:00:26.3]} 65... Rb2 {[%clk 0:00:13.7]} 66. Kf5
{[%clk 0:00:23.8]} 66... Kc7 {[%clk 0:00:14.9]} 67. Rc6+ {[%clk 0:00:24.4]}
67... Kb7 {[%clk 0:00:16.1]} 68. Ke6 {[%clk 0:00:25.8]} 68... g4 {[%clk
0:00:10.7]} 69. Kxd5 {[%clk 0:00:26.8]} 69... Re2 {[%clk 0:00:08.1]} 70. Nd7
{[%clk 0:00:25.4]} 70... g3 {[%clk 0:00:07.9]} 71. Rg6 {[%clk 0:00:25.3]} 71...
b4 {[%clk 0:00:08.4]} 72. Nc5+ {[%clk 0:00:24.3]} 72... Nxc5 {[%clk 0:00:09.2]}
73. dxc5 {[%clk 0:00:26.2]} 73... g2 {[%clk 0:00:08.7]} 74. Kc4 {[%clk
0:00:26.4]} 74... Rb2 {[%clk 0:00:07.7]} 75. Rg7+ {[%clk 0:00:20.4]} 75... Kc6
{[%clk 0:00:07.5]} 76. Rg6+ {[%clk 0:00:21.4]} 76... Kc7 {[%clk 0:00:08.1]} 77.
Kb5 {[%clk 0:00:20.8]} 77... b3 {[%clk 0:00:07.3]} 78. Rg7+ {[%clk 0:00:19.8]}
78... Kd8 {[%clk 0:00:08.6]} 79. Kb4 {[%clk 0:00:20.3]} 79... Ke8 {[%clk
0:00:06.5]} 80. Kc3 {[%clk 0:00:20.2]} 80... Rf2 {[%clk 0:00:05.5]} 81. Kxb3
{[%clk 0:00:20.3]} 81... Kd8 {[%clk 0:00:07]} 82. Kc4 {[%clk 0:00:20.6]} 82...
Kc8 {[%clk 0:00:08.3]} 83. Kb5 {[%clk 0:00:21.6]} 83... Rf6 {[%clk 0:00:08.9]}
84. Rxg2 {[%clk 0:00:22.1]} 84... Kc7 {[%clk 0:00:09.7]} 85. Rg7+ {[%clk
0:00:23.1]} 85... Kc8 {[%clk 0:00:11]} 86. Rg3 {[%clk 0:00:22.1]} 86... Rh6
{[%clk 0:00:11.6]} 87. Kc4 {[%clk 0:00:23]} 87... Rf6 {[%clk 0:00:12.5]} 88. Rd3
{[%clk 0:00:22.6]} 88... Rh6 {[%clk 0:00:13.3]} 89. Rd6 {[%clk 0:00:21.3]} 89...
Rxd6 {[%clk 0:00:13.2]} 90. cxd6 {[%clk 0:00:23.2]} 90... Kd7 {[%clk 0:00:14.5]}
91. Kd5 {[%clk 0:00:25.1]} 91... Kd8 {[%clk 0:00:15.6]} 92. Kc6 {[%clk 0:00:27]}
92... Kc8 {[%clk 0:00:16.9]} 93. d7+ {[%clk 0:00:28.9]} 93... Kd8 {[%clk
0:00:18.3]} 94. Kd6 {[%clk 0:00:30.8]} 1/2-1/2